Cogmind - Beta 13 @@@ ROGUE MODE // 2024.04.09 @ 05:41:03 Player: iwantthegold Result: Destroyed self with Grenade Launcher Performance ------------- Evolutions (0) 0 Regions Visited (1) 200 Robots Destroyed (8) 40 Value Destroyed (175) 175 Prototype IDs (0) 0 Alien Tech Used (0) 0 Bonus (0) 0 TOTAL SCORE: 415 Bonus ------- None Cogmind --------- Core Integrity 0/250 Matter 202/300 Energy 230/250 System Corruption 16% Temperature Cool (0) Movement Walking (120) Location -10/Materials Parts ------- > --- POWER (1) -------- Ion Engine > --- PROPULSION (2) --- Aluminum Leg Aluminum Leg > --- UTILITY (2) ------ Medium Storage Unit > --- WEAPON (2) ------- Light Assault Rifle Grenade Launcher > --- INVENTORY (10) --- Ion Engine Light Nuclear Core Aluminum Leg Aluminum Leg Aluminum Leg Targeting Computer EM Pulse Gun Small Laser Particle Gun Assault Rifle Peak State ------------ > --- POWER ------------ Ion Engine > --- PROPULSION ------- Aluminum Leg Aluminum Leg > --- UTILITY ---------- Small Storage Unit Terrain Scan Processor > --- WEAPON ----------- Particle Gun Light Assault Rifle > --- INVENTORY -------- Light Nuclear Core Aluminum Leg Aluminum Leg Aluminum Leg EM Pulse Gun Small Laser Assault Rifle Grenade Launcher [Rating: 10] Favorites ----------- Power Ion Engine Engine Ion Engine Propulsion Aluminum Leg Leg Aluminum Leg Wheel Compact Wheel Utility Small Storage Unit Storage Small Storage Unit Processor Terrain Scan Processor Weapon Light Assault Rifle Energy Gun EM Pulse Gun Ballistic Gun Light Assault Rifle Launcher Grenade Launcher Special Weapon Mining Laser Build | -11 -10 ------- Run | Yrd Mat Slots Evolved . | . . Power . | . . Propulsion . | . . Utility . | . . Weapon . | . . Parts Attached 24 | 5 19 Power 3 | 1 2 Engine 3 | 1 2 Core . | . . Reactor . | . . Propulsion 7 | 1 6 Treads . | . . Leg 6 | 1 5 Wheel 1 | . 1 Hover . | . . Flight . | . . Utility 4 | 1 3 Device . | . . Storage 3 | 1 2 Processor 1 | . 1 Hackware . | . . Protection . | . . Artifact . | . . Weapon 10 | 2 8 Energy Gun 3 | 1 2 Energy Cannon . | . . Ballistic Gun 4 | 1 3 Ballistic Cannon . | . . Launcher 2 | . 2 Special Weapon 1 | . 1 Impact Weapon . | . . Slashing Weapon . | . . Piercing Weapon . | . . Special Melee Weapon . | . . Unidentified Prototypes . | . . Parts Lost 8 | . 8 Power 1 | . 1 Propulsion 2 | . 2 Utility 2 | . 2 Weapon 3 | . 3 Highest Loss Streak 6 | . 6 To Critical Strikes . | . . Average Slot Usage (%) 95 | . 95 Engine 13 | . 13 Leg 26 | . 26 Storage 22 | . 22 Processor 1 | . 1 Energy Gun 12 | . 12 Ballistic Gun 7 | . 7 Launcher 2 | . 2 Special Weapon 5 | . 5 Naked Turns . | . . Heaviest Build 24 | 11 24 Greatest Support 20 | 10 20 Greatest Overweight (x) 1 | 1 1 Average Overweight (x) . | . . Largest Inventory Capacity 10 | 8 10 Average Capacity 8 | 7 8 Most Carried 10 | 7 10 Average Carried 7 | 5 7 Final Capacity 10 | 8 10 Final Carried 10 | 7 10 Class Distribution -------------------- 50% | Mutant 49% | Scavenger-Mutant Dominant Class ---------------- Scavenger-Mutant | -10/Materials Resources | -11 -10 ----------- Run | Yrd Mat Matter Collected 400 | 227 173 Remotely . | . . Salvage Created 210 | . 210 Parts 21 | . 21 Haulers Intercepted . | . . Recyclers Shooed . | . . Parts Field Recycled . | . . Retrieved Matter . | . . Parts Self-Destructed . | . . Prevented . | . . Kills | -11 -10 ------- Run | Yrd Mat Combat Hostiles Destroyed 6 | . 6 Guns 3 | . 3 AOE 3 | . 3 Classes Destroyed 4 | . 4 Worker 1 | . 1 Builder 1 | . 1 Swarmer 2 | . 2 Grunt 4 | . 4 Best Kill Streak 3 | . 3 Combat Bots Only 2 | . 2 Max Kills in Single Turn 3 | . 3 Gunslinging . | . . Exploded 2 | . 2 Melee . | . . Uniques/NPCs Destroyed . | . . Combat | -11 -10 -------- Run | Yrd Mat Hostile Shots Fired 19 | . 19 Missed 4 | . 4 Damage Taken 1228 | . 1228 Core 268 | . 268 Absorbed by Shields . | . . Core Remaining (%) 100 | 100 . Volleys Fired 57 | . 57 Largest 2 | . 2 Hottest 100 | . 100 Shots Fired 62 | . 62 Gun 19 | . 19 Cannon . | . . Launcher 4 | . 4 Special 39 | . 39 Kinetic 15 | . 15 Thermal 43 | . 43 Explosive 4 | . 4 Electromagnetic . | . . Robot Hit Streak 11 | . 11 Robot Miss Streak 2 | . 2 Penetration Max . | . . Secondary Targets . | . . Shots Hit Robots 14 | . 14 Core Hits 16 | . 16 Critical Kills . | . . Critical Parts Destroyed . | . . Critical Strikes . | . . Melee Attacks . | . . Impact . | . . Slashing . | . . Piercing . | . . Sneak Attacks . | . . Combat Hostiles . | . . Follow-up Attacks . | . . Damage Inflicted 364 | . 364 Guns 123 | . 123 Cannons . | . . Explosions 241 | . 241 Melee . | . . Ramming . | . . Kinetic 90 | . 90 Thermal 33 | . 33 Explosive 241 | . 241 Electromagnetic . | . . Impact . | . . Slashing . | . . Piercing . | . . Highest Corruption 16 | . 16 Average Corruption 15 | . 15 Corruption Purged . | . . Corruption Blocked . | . . Effects 24 | . 24 Message Errors 4 | . 4 Matter Fused 7 | . 7 Heat Flow Errors 3 | . 3 Energy Discharges 4 | . 4 Parts Rejected 2 | . 2 Parts Fused 1 | . 1 Data Loss (minor) 1 | . 1 Data Loss (major) 1 | . 1 Misfires 1 | . 1 Overload Shots . | . . Overflow Damage . | . . Projectiles . | . . Explosions . | . . Melee . | . . Knockbacks . | . . Impact . | . . Kinetic . | . . Secondary . | . . Self-Inflicted Damage 83 | . 83 Shots 3 | . 3 Rammed . | . . Targets Rammed . | . . Kicked . | . . Crushed . | . . Highest Temperature 246 | . 246 Average Temperature 45 | . 45 Received Heat Transfer 69 | . 69 Siege Activations . | . . Robots Corrupted . | . . Combat Hostiles . | . . Parts Fried . | . . Impact Corruptions . | . . Robots Melted . | . . Combat Hostiles . | . . Parts Melted . | . . Heat Transferred 74 | . 74 Parts Sabotaged . | . . Parts Stolen . | . . Parts Stripped . | . . Power Chain Reactions . | . . Alert | -11 -10 ------- Run | Yrd Mat Peak Influence 80 | . 80 Initial . | . . Average 26 | . 29 Maximum Alert Level . | . . Low Security (%) 100 | 100 100 Level 1 . | . . Level 2 . | . . Level 3 . | . . Level 4 . | . . Level 5 . | . . High Security . | . . Max Security . | . . Squads Dispatched 2 | . 2 Investigation . | . . Extermination . | . . Reinforcement 2 | . 2 Assault . | . . Garrison . | . . Intercept . | . . Searches Triggered . | . . Construction Impeded . | . . Haulers Reinforced . | . . Active Scanning Responses . | . . Cargo Convoy Interrupts . | . . Stealth | -11 -10 --------- Run | Yrd Mat Distress Signals 3 | . 3 Communications Jammed . | . . Distress Signals . | . . Times Spotted 17 | . 17 Peak Tracking Total 6 | . 6 Tactical Retreats . | . . Traps | -11 -10 ------- Run | Yrd Mat Traps Triggered . | . . Indirectly . | . . Trap Hack Attempts . | . . Triggered . | . . Disarmed . | . . Reprogrammed . | . . Reused . | . . Traps Extracted . | . . Installed . | . . Triggered . | . . Machines | -11 -10 ---------- Run | Yrd Mat Machines Disabled . | . . Max in Single Turn . | . . Machines Repaired . | . . Machines Dismantled . | . . Machines Sabotaged . | . . Overloaded Fab Kills . | . . Hacking | -11 -10 --------- Run | Yrd Mat Machines Accessed 5 | . 5 Terminals 5 | . 5 Fabricators . | . . Repair Stations . | . . Recycling Units . | . . Scanalyzers . | . . Garrison Access . | . . Total Hacks 5 | . 5 Successful 2 | . 2 Failed 3 | . 3 Catastrophic . | . . Database Lockouts . | . . Manual . | . . Terminals 5 | . 5 Fabricators . | . . Repair Stations . | . . Recycling Units . | . . Scanalyzers . | . . Garrison Access . | . . Terminal Hacks 2 | . 2 Emergency Access Points 1 | . 1 Alert Level 1 | . 1 Fabricator Hacks . | . . Repair Station Hacks . | . . Recycling Unit Hacks . | . . Scanalyzer . | . . Garrison Access Hacks . | . . Unauthorized Hacks . | . . Terminals . | . . Fabricators . | . . Repair Stations . | . . Recycling Units . | . . Scanalyzers . | . . Garrison Access . | . . Data Cores Recovered . | . . Used . | . . Hacking Detections 2 | . 2 Full Trace Events . | . . Feedback Events . | . . Feedback Blocked . | . . Robot Schematics Acquired . | . . Robots Built . | . . Authchips . | . . Time . | . . Total Robot Build Rating . | . . Part Schematics Acquired . | . . Parts Built . | . . Authchips . | . . Time . | . . Total Part Build Rating . | . . Parts Repaired . | . . Time . | . . Parts Recycled . | . . Recycled Matter . | . . Retrieved Matter . | . . Retrieved Components . | . . Parts Scanalyzed . | . . Part Schematics Acquired . | . . Parts Damaged . | . . Bothacking | -11 -10 ------------ Run | Yrd Mat Used RIF Installer . | . . Robots Hacked . | . . Non-combat . | . . Combat . | . . Robot Hacks Applied . | . . Relay Couplers Released . | . . Fabnet Peak Effective % . | . . Robots Rewired . | . . Allies Hacked . | . . Hacks Repelled . | . . Allies | -11 -10 -------- Run | Yrd Mat Total Allies . | . . Largest Group . | . . Highest-Rated Group . | . . Highest-Rated Ally . | . . Total Orders . | . . Ally Attacks . | . . Total Damage . | . . Kills . | . . Allies Corrupted . | . . Allies Melted . | . . Intel | -11 -10 ------- Run | Yrd Mat Robot Analysis Total . | . . Derelict Logs Recovered . | . . Drone Launches . | . . Drone Recoveries . | . . Exploration | -11 -10 ------------- Run | Yrd Mat Turns Passed 971 | 116 855 Spaces Moved 511 | 61 450 Core 5 | 5 . Treads . | . . Legs 497 | 56 441 Wheels 9 | . 9 Hover . | . . Flight . | . . Fastest Speed 50 | 50 100 Average Speed 140 | 168 136 Slowest Speed 190 | 190 190 Overloaded Moves . | . . Propulsion Burnouts . | . . Robots Hopped . | . . Cave-ins Triggered 3 | . 3 Exploration Rate (%) 27 | 4 51 Regions Visited 1 Branch Regions . Pre-discovered Areas . | . . Known Exits Taken . | . . Unknown Exits Taken 1 | 1 . Scrap Searched . | . . Spaces Dug 46 | . 46 Terrain Destroyed 71 | . 71 Melee . | . . Projectile 39 | . 39 AOE 32 | . 32 Terrain Rammed . | . . Walls Destroyed . | . . Machines Disabled . | . . Actions | -11 -10 --------- Run | Yrd Mat Total 633 | 73 560 Wait 9 | . 9 Move 507 | 60 447 Hop . | . . Pick Up 24 | 8 16 Fast Attach 9 | 4 5 Attach 8 | 1 7 Detach . | . . Swap 7 | . 7 Drop 9 | . 9 Fire 57 | . 57 Melee . | . . Ram . | . . Kick . | . . Crush . | . . Escape Stasis 3 | . 3 Rewire . | . . Trap . | . . Miscellaneous . | . . Route ------- -11/Scrapyard -10/Materials (discovered 1 exit: [*Min]) History --------- Turn | Location | Event 27 | -11/Scrapyard | Discovered new exit (range 14) 117 | -11/Scrapyard | Entered Materials 303 | -10/Materials | Build established: Mutant 468 | -10/Materials | Crushed by falling debris 469 | -10/Materials | System corruption reached 10% 470 | -10/Materials | Crushed by falling debris 471 | -10/Materials | Core integrity fell below 50% 475 | -10/Materials | Crushed by falling debris 476 | -10/Materials | Core integrity fell below 20% 506 | -10/Materials | Lost 6 parts (1p2n1u2w) 741 | -10/Materials | Discovered new exit (range 7) 940 | -10/Materials | Build established: Scavenger-Mutant 972 | -10/Materials | Destroyed self with Grenade Launcher Last Messages --------------- 00814_ System corrupted: Matter fused (-5). 00829_ W& PW5HLUI>4MWHTHC#73J,XJDKII 00852_ System corrupted: Matter fused (-5). 00873_ System corrupted: Component data lost. 00895_ Acquired Targeting Computer. 00907_ Acquired Ion Engine. 00911_ LLCID9QJGQYDRMMSVH%7KGH 00921_ Connecting with Terminal... 00923_ K-01 Serf cleans the Neutrino Reactor. 00933_ L8 ZU#LMBODOC:PK5SPVR= 00972_ K-01 Serf destroyed. Map ----- +----------------------------------------------------+ | ?????????????????????????????????????????????????? | | ?????????????????????????????????????????????????? | | ?????????????????????????????????????????????????? | | ?????????????????????????????????????????????????? | | ?????????????????????????????????????????????????? | | ?????????????????????????????????????????????????? | | ?????????????????????????????????????????????????? | | ?????????????????????????????????????????????????? | | ?????????????????????????????????????############# | | ?????????????????????????????????????#! # | | ?????????????????????????????????????# """ # | | ????????????????????????????########?# """"" + | | ????????????????????????????# #?# """"" # | | ????????????????????????????# """ #?# """"" # | | ????????????????????????????# """ #?# """ #### | | ?????????????? ?????????????# """ #?# #??? | | ?????????????? ????????????# #?# #??? | | ???????????????# ???????????# #?# #??? | | ????????????????# ??############+################# | | ????????????????# ?# #?# | | ????????????????? # g""" ## | | ??????????????????? + """ ## """ """ [[ | | ????????????????????#sk""" #T """ """ [[ | | ????????????????????#* =*% ### """ """ [ | | ????????????????????# =%% ## !!! | | ????????????????????###=!@ ## !!! | | ????????????????# ????### #### """ """ """ !!! | | ????????????????# ?????# #??# """ """ """ | | ????????????????# ##### #### """ """ """ | | ????????????????# k | | ????????????????# | | ????????????????# | | ????????????????#########+###########/############ | | ?????????????????????# #?# # # # | | ?????????????????????# """"" #?# ## ### # | | ?????????????????????# """"" ### ###"#### | | ?????????????????????# """"" ### + ##??? | | ?????????????????????# ##"##########" #???? | | ?????????????????????# ####???????#"#+##??? | | ?????????????????????# "T" #??????????# #??? | | ?????????????????????# """ #?????????#" #??? | | ?????????????????????# #????????### #??? | | ?????????????????????#######/##????????# + #??? | | ???????????????????????????# ??????????# # ! #??? | | ???????????????????????????# ??????????? # #??? | | ???????????????????????????# ???? #????? + #??? | | ???????????????????????????# ???? ????? ######??? | | ???????????????????????????# ##### ##### # #??? | | ???????????????????????????# + #??? | | ?????????????????????????????? # #??? | +----------------------------------------------------+ Best States ------------- Heat Dissipation 25 Energy Generation 10 Energy Capacity 250 Matter Stores 277 Matter Capacity 350 Sight Range 16 Terrain Scan Density 85 Evasion (%) 55 Item Schematics ----------------- None Robot Schematics ------------------ None Fabricated ------------ Nothing Alien Tech Used ----------------- None Achievements -------------- None Challenges ------------ None Game ------ Seed CatalystCloakingWeb Manual? 0 Play Time 00:13:55 Cumulative 7.8 hours Start 2024.04.08 @ 17:27:32 End 2024.04.09 @ 05:41:03 Sessions 3 Manual Loads 0 Difficulty Rogue Special Mode None Game No. 8 Rogue 8 Adventurer 0 Explorer 0 Win Type - Total 0 Types 0/0/0/0/0/0/0/0/0 Lore% 1 Gallery% 12 Achievement% 11 Wizard Run 0 Options --------- Layout 1 ASCII 0 Keyboard 0 Movement Mouse Keybinds 0 Fullscreen 1 Font 18/SmallcapsGlow Map View 54x44 Zoom Use 0% Tactical HUD 1 Map Filters NONE Filters NONE Steam 0 RUN: 4fa2902d-8032-445a-8abf-7906d7e21881